Cogmind - Beta 10.1 @@@ ROGUE MODE // 2020.10.13 @ 03:30:33 Player: WayneKnight Result: Self-destructed Performance ------------- Evolutions (1) 500 Regions Visited (5) 1000 Robots Destroyed (33) 165 Value Destroyed (590) 590 Prototype IDs (2) 40 Alien Tech Used (0) 0 Bonus (60) 60 TOTAL SCORE: 2355 Bonus ------- Follower Combat Kills 60 Cogmind --------- Core Integrity 236/400 Matter 297/300 Energy 250/250 System Corruption 5% Temperature Cool (0) Movement Treading (180) Ox1 Location -9/Exiles Parts ------- > --- POWER (1) -------- Ion Engine > --- PROPULSION (3) --- Light Treads Light Treads Light Treads > --- UTILITY (3) ------ High-capacity Storage Unit High-capacity Storage Unit High-capacity Storage Unit > --- WEAPON (2) ------- Assault Rifle Heavy Assault Rifle > --- INVENTORY (28) --- Light Ion Engine Light Ion Engine Light Ion Engine Improved Ion Engine Light Treads Light Treads Light Treads Improved Treads Medium Storage Unit Large Storage Unit High-capacity Storage Unit Visual Processing Unit Improved Signal Interpreter Improved Signal Interpreter Terrain Scan Processor Light Armor Plating Medium Armor Plating Medium Armor Plating EM Pulse Gun Particle Cannon Heavy Assault Rifle Light Cannon Light Cannon Grenade Launcher Rocket Launcher Enhanced Flamer Maul Mining Claw Peak State ------------ > --- POWER ------------ Ion Engine > --- PROPULSION ------- Light Treads Improved Treads Improved Treads > --- UTILITY ---------- High-capacity Storage Unit High-capacity Storage Unit High-capacity Storage Unit > --- WEAPON ----------- Heavy Assault Rifle Heavy Assault Rifle > --- INVENTORY -------- Ion Engine Light Treads Improved Treads Medium Storage Unit Large Storage Unit Improved Signal Interpreter Improved Signal Interpreter Terrain Scan Processor Light Armor Plating Heavy EM Pulse Gun EM Shotgun EM Shotgun Assault Rifle Heavy Assault Rifle Heavy Assault Rifle Light Cannon Light Cannon Grenade Launcher Rocket Launcher Mining Claw [Rating: 16] Favorites ----------- Power Ion Engine Engine Ion Engine Propulsion Light Treads Treads Light Treads Leg Aluminum Leg Wheel Wheel Utility High-capacity Storage Unit Storage High-capacity Storage Unit Weapon Heavy Assault Rifle Energy Gun EM Pulse Gun Ballistic Gun Heavy Assault Rifle Launcher Grenade Launcher Build | -11 -10 -10 -9 -9 -9 ------- Run | Scr Mat Min Mat Min Exi Slots Evolved 2 | . . . 2 . . Power . | . . . . . . Propulsion 1 | . . . 1 . . Utility 1 | . . . 1 . . Weapon . | . . . . . . Parts Attached 32 | . 17 . 3 12 . Power 4 | . 2 . . 2 . Engine 4 | . 2 . . 2 . Core . | . . . . . . Reactor . | . . . . . . Propulsion 12 | . 5 . 2 5 . Treads 11 | . 4 . 2 5 . Leg . | . . . . . . Wheel 1 | . 1 . . . . Hover . | . . . . . . Flight . | . . . . . . Utility 4 | . 3 . 1 . . Device . | . . . . . . Storage 4 | . 3 . 1 . . Processor . | . . . . . . Hackware . | . . . . . . Protection . | . . . . . . Artifact . | . . . . . . Weapon 12 | . 7 . . 5 . Energy Gun 5 | . 2 . . 3 . Energy Cannon . | . . . . . . Ballistic Gun 5 | . 3 . . 2 . Ballistic Cannon . | . . . . . . Launcher 2 | . 2 . . . . Special Weapon . | . . . . . . Impact Weapon . | . . . . . . Slashing Weapon . | . . . . . . Piercing Weapon . | . . . . . . Special Melee Weapon . | . . . . . . Unidentified Prototypes . | . . . . . . Parts Lost 11 | . 1 . . 10 . Power 3 | . 1 . . 2 . Propulsion 3 | . . . . 3 . Utility . | . . . . . . Weapon 5 | . . . . 5 . Highest Loss Streak 8 | . 1 . . 8 . Average Slot Usage (%) 96 | . 95 100 97 93 100 Engine 12 | . 13 14 11 10 11 Treads 28 | . 27 28 32 28 33 Storage 28 | . 25 28 31 33 33 Energy Gun 4 | . 9 . . 1 . Ballistic Gun 20 | . 17 28 22 20 22 Naked Turns . | . . . . . . Heaviest Build 107 | 11 75 75 107 106 106 Greatest Support 66 | 20 40 40 66 66 60 Greatest Overweight (x) 21 | . 21 1 1 2 1 Average Overweight (x) 1 | . . 1 1 1 1 Largest Inventory Capacity 28 | 6 20 20 28 28 28 Average Capacity 21 | 6 15 20 27 28 28 Most Carried 28 | 6 20 20 22 28 28 Average Carried 18 | 6 13 19 21 22 28 Final Capacity 28 | 6 20 20 28 28 28 Final Carried 28 | 6 20 20 22 28 28 Class Distribution -------------------- 77% | Hauler-Mutant 22% | Mutant Dominant Class ---------------- Mutant | -10/Materials Hauler-Mutant | -10/Mines Hauler-Mutant | -9/Materials Hauler-Mutant | -9/Mines Hauler-Mutant | -9/Exiles Resources | -11 -10 -10 -9 -9 -9 ----------- Run | Scr Mat Min Mat Min Exi Matter Collected 899 | 200 266 68 79 286 . Remotely . | . . . . . . Salvage Created 741 | . 400 32 79 230 . Parts 55 | . 28 2 7 18 . Haulers Intercepted . | . . . . . . Recyclers Shooed . | . . . . . . Parts Field Recycled . | . . . . . . Retrieved Matter . | . . . . . . Parts Self-Destructed . | . . . . . . Prevented . | . . . . . . Kills | -11 -10 -10 -9 -9 -9 ------- Run | Scr Mat Min Mat Min Exi Combat Hostiles Destroyed 30 | . 16 1 1 12 . Guns 24 | . 10 1 1 12 . AOE 6 | . 6 . . . . Classes Destroyed 8 | . 3 . 2 3 . Builder 1 | . . . . 1 . Mechanic 1 | . 1 . . . . Watcher 1 | . . . 1 . . Swarmer 16 | . 9 . . 7 . Grunt 8 | . 7 1 . . . Sentry 1 | . . . 1 . . Demolisher 1 | . . . . 1 . Assembled 4 | . . . . 4 . Best Kill Streak 6 | . 6 1 1 4 . Combat Bots Only 5 | . 5 1 1 4 . Max Kills in Single Turn 4 | . 4 1 1 2 . Gunslinging 1 | . . . . 1 . Exploded 4 | . 4 . . . . Melee . | . . . . . . Uniques/NPCs Destroyed . | . . . . . . Combat | -11 -10 -10 -9 -9 -9 -------- Run | Scr Mat Min Mat Min Exi Damage Taken 1972 | . 456 57 170 1272 17 Core 227 | . 63 . 12 135 17 Absorbed by Shields . | . . . . . . Core Remaining (%) 87 | 100 . 74 . . . Volleys Fired 85 | . 37 4 11 33 . Largest 2 | . 2 2 2 2 . Hottest 68 | . 60 46 46 68 . Shots Fired 157 | . 66 8 22 60 1 Gun 151 | . 60 8 22 60 1 Cannon . | . . . . . . Launcher 6 | . 6 . . . . Special . | . . . . . . Kinetic 119 | . 41 8 22 47 1 Thermal . | . . . . . . Explosive 6 | . 6 . . . . Electromagnetic 32 | . 19 . . 13 . Robot Hit Streak 12 | . 11 9 12 7 2 Robot Miss Streak 5 | . 3 . 1 5 . Penetration Max . | . . . . . . Secondary Targets 2 | . . . . 2 . Max Gunslinging Chain 1 | . . . . 1 . Shots Hit Robots 101 | . 41 8 16 35 1 Core Hits 49 | . 23 3 3 20 . Critical Hits 3 | . . 2 1 . . Critical Kills . | . . . . . . Critical Parts Destroyed 2 | . . 2 . . . Melee Attacks . | . . . . . . Impact . | . . . . . . Slashing . | . . . . . . Piercing . | . . . . . . Sneak Attacks . | . . . . . . Combat Hostiles . | . . . . . . Follow-up Attacks . | . . . . . . Damage Inflicted 1792 | . 895 125 227 545 . Guns 1370 | . 473 125 227 545 . Cannons . | . . . . . . Explosions 415 | . 415 . . . . Melee . | . . . . . . Ramming 7 | . 7 . . . . Kinetic 1091 | . 290 125 227 449 . Thermal . | . . . . . . Explosive 415 | . 415 . . . . Electromagnetic 279 | . 183 . . 96 . Impact . | . . . . . . Slashing . | . . . . . . Piercing . | . . . . . . Highest Corruption 5 | . . . . 5 5 Average Corruption 5 | . . . . 5 5 Corruption Purged . | . . . . . . Effects 18 | . . . . 16 2 Message Errors 7 | . . . . 6 1 Matter Fused 3 | . . . . 3 . Heat Flow Errors 5 | . . . . 5 . Data Loss (minor) 2 | . . . . 2 . Misfires 1 | . . . . . 1 Overload Shots . | . . . . . . Overflow Damage . | . . . . . . Projectiles . | . . . . . . Explosions . | . . . . . . Melee . | . . . . . . Knockbacks . | . . . . . . Impact . | . . . . . . Kinetic . | . . . . . . Secondary . | . . . . . . Self-Inflicted Damage 40 | . 40 . . . . Shots 1 | . 1 . . . . Rammed 1 | . 1 . . . . Targets Rammed 1 | . 1 . . . . Kicked . | . . . . . . Crushed . | . . . . . . Highest Temperature 239 | . 36 5 1 239 . Average Temperature 53 | . 23 3 1 85 . Received Heat Transfer 227 | . 129 33 45 20 . Siege Activations . | . . . . . . Robots Corrupted . | . . . . . . Combat Hostiles . | . . . . . . Parts Fried 1 | . 1 . . . . Impact Corruptions . | . . . . . . Robots Melted . | . . . . . . Combat Hostiles . | . . . . . . Parts Melted . | . . . . . . Heat Transferred . | . . . . . . Parts Sabotaged . | . . . . . . Parts Stolen . | . . . . . . Parts Stripped . | . . . . . . Power Chain Reactions . | . . . . . . Missiles Intercepted . | . . . . . . Alert | -11 -10 -10 -9 -9 -9 ------- Run | Scr Mat Min Mat Min Exi Peak Influence 294 | . 294 21 100 189 . Initial 39 | . . 1 2 39 . Average 97 | . 162 15 45 82 . Maximum Alert Level 1 | . 1 . . . . Low Security (%) 86 | 100 65 100 100 100 . Level 1 13 | . 34 . . . . Level 2 . | . . . . . . Level 3 . | . . . . . . Level 4 . | . . . . . . Level 5 . | . . . . . . High Security . | . . . . . . Max Security . | . . . . . . Squads Dispatched 4 | . 3 . . 1 . Investigation 1 | . 1 . . . . Extermination . | . . . . . . Reinforcement 2 | . 2 . . . . Assault 1 | . . . . 1 . Garrison . | . . . . . . Intercept . | . . . . . . Construction Impeded . | . . . . . . Haulers Reinforced . | . . . . . . Stealth | -11 -10 -10 -9 -9 -9 --------- Run | Scr Mat Min Mat Min Exi Distress Signals 3 | . 1 . . 2 . Communications Jammed . | . . . . . . Distress Signals . | . . . . . . Times Spotted 59 | . 23 3 3 22 8 Peak Tracking Total 9 | . 7 2 1 9 9 Tactical Retreats 4 | . 1 2 . 1 . Traps | -11 -10 -10 -9 -9 -9 ------- Run | Scr Mat Min Mat Min Exi Traps Triggered 3 | . 3 . . . . Indirectly . | . . . . . . Trap Hack Attempts . | . . . . . . Triggered . | . . . . . . Disarmed . | . . . . . . Reprogrammed . | . . . . . . Reused . | . . . . . . Traps Extracted . | . . . . . . Installed . | . . . . . . Triggered . | . . . . . . Machines | -11 -10 -10 -9 -9 -9 ---------- Run | Scr Mat Min Mat Min Exi Machines Disabled 1 | . . . . . 1 Max in Single Turn 1 | . . . . . 1 Machines Sabotaged . | . . . . . . Garrisons Compromised . | . . . . . . Overloaded Fab Kills . | . . . . . . Fab Network Shutdowns . | . . . . . . Hacking | -11 -10 -10 -9 -9 -9 --------- Run | Scr Mat Min Mat Min Exi Machines Accessed 9 | . 5 1 3 . . Terminals 8 | . 4 1 3 . . Fabricators . | . . . . . . Repair Stations . | . . . . . . Recycling Units 1 | . 1 . . . . Scanalyzers . | . . . . . . Garrison Access . | . . . . . . Total Hacks 34 | . 19 2 13 . . Successful 19 | . 8 1 10 . . Failed 14 | . 10 1 3 . . Catastrophic 2 | . 1 1 . . . Database Lockouts 1 | . 1 . . . . Manual 17 | . 12 2 3 . . Terminals 32 | . 17 2 13 . . Fabricators . | . . . . . . Repair Stations . | . . . . . . Recycling Units 2 | . 2 . . . . Scanalyzers . | . . . . . . Garrison Access . | . . . . . . Terminal Hacks 12 | . 4 1 7 . . Robot Analysis 4 | . 2 . 2 . . Prototype ID Bank 1 | . . . 1 . . Branch Access Points 1 | . . 1 . . . Locate Traps 2 | . 1 . 1 . . Hauler Manifests 2 | . 1 . 1 . . Registered Components 1 | . . . 1 . . Zone Layout 1 | . . . 1 . . Fabricator Hacks . | . . . . . . Repair Station Hacks . | . . . . . . Recycling Unit Hacks 1 | . 1 . . . . Report Inventory 1 | . 1 . . . . Scanalyzer . | . . . . . . Garrison Access Hacks . | . . . . . . Unauthorized Hacks 6 | . 3 . 3 . . Terminals 6 | . 3 . 3 . . Track 1 | . . . 1 . . Botnet 5 | . 3 . 2 . . Fabricators . | . . . . . . Repair Stations . | . . . . . . Recycling Units . | . . . . . . Scanalyzers . | . . . . . . Garrison Access . | . . . . . . Data Cores Recovered . | . . . . . . Used . | . . . . . . Hacking Detections 9 | . 5 1 3 . . Full Trace Events . | . . . . . . Feedback Events . | . . . . . . Feedback Blocked . | . . . . . . Robot Schematics Acquired . | . . . . . . Robots Built . | . . . . . . Matter . | . . . . . . Time . | . . . . . . Total Robot Build Rating . | . . . . . . Part Schematics Acquired . | . . . . . . Parts Built . | . . . . . . Matter . | . . . . . . Time . | . . . . . . Total Part Build Rating . | . . . . . . Parts Repaired . | . . . . . . Time . | . . . . . . Parts Recycled . | . . . . . . Recycled Matter . | . . . . . . Retrieved Matter . | . . . . . . Retrieved Components . | . . . . . . Parts Scanalyzed . | . . . . . . Part Schematics Acquired . | . . . . . . Parts Damaged . | . . . . . . Bothacking | -11 -10 -10 -9 -9 -9 ------------ Run | Scr Mat Min Mat Min Exi Used RIF Installer . | . . . . . . Robots Hacked . | . . . . . . Non-combat . | . . . . . . Combat . | . . . . . . Robot Hacks Applied . | . . . . . . Relay Couplers Released . | . . . . . . Robots Rewired . | . . . . . . Allies Hacked . | . . . . . . Hacks Repelled . | . . . . . . Allies | -11 -10 -10 -9 -9 -9 -------- Run | Scr Mat Min Mat Min Exi Total Allies 1 | . . . . 1 . Largest Group 1 | . . . . 1 1 Highest-Rated Group 31 | . . . . 31 31 Highest-Rated Ally 31 | . . . . 31 31 Total Orders . | . . . . . . Ally Attacks 4 | . . . . 3 1 Total Damage 66 | . . . . 64 2 Kills 2 | . . . . 2 . Allies Corrupted . | . . . . . . Allies Melted . | . . . . . . Intel | -11 -10 -10 -9 -9 -9 ------- Run | Scr Mat Min Mat Min Exi Robot Analysis Total 4 | . 2 . 2 . . Derelict Logs Recovered . | . . . . . . Drone Launches . | . . . . . . Drone Recoveries . | . . . . . . Exploration | -11 -10 -10 -9 -9 -9 ------------- Run | Scr Mat Min Mat Min Exi Turns Passed 3117 | 2 1231 622 330 860 72 Spaces Moved 1498 | 2 588 338 160 371 39 Core 1 | . 1 . . . . Treads 1476 | . 568 338 160 371 39 Legs 21 | 2 19 . . . . Wheels . | . . . . . . Hover . | . . . . . . Flight . | . . . . . . Fastest Speed 120 | 120 120 180 180 180 180 Average Speed 180 | 120 177 180 180 187 180 Slowest Speed 1100 | 120 1100 180 180 200 180 Overloaded Moves . | . . . . . . Propulsion Burnouts . | . . . . . . Robots Hopped . | . . . . . . Cave-ins Triggered . | . . . . . . Exploration Rate (%) 40 | 2 95 50 12 73 13 Regions Visited 5 Branch Regions 3 Pre-discovered Areas . | . . . . . . Known Exits Taken . | . . . . . . Unknown Exits Taken 5 | 1 1 1 1 1 . Scrap Searched 4 | . . 1 . 3 . Spaces Dug . | . . . . . . Terrain Destroyed 42 | . 42 . . . . Melee . | . . . . . . Projectile . | . . . . . . AOE 42 | . 42 . . . . Terrain Rammed . | . . . . . . Walls Destroyed . | . . . . . . Machines Disabled . | . . . . . . Actions | -11 -10 -10 -9 -9 -9 --------- Run | Scr Mat Min Mat Min Exi Total 1753 | 1 712 346 181 473 40 Wait 84 | . 37 1 . 45 1 Move 1493 | 1 587 337 159 370 39 Hop . | . . . . . . Pick Up 41 | . 22 2 5 12 . Fast Attach 10 | . 6 . 1 3 . Attach 10 | . 1 . 1 8 . Detach 2 | . 1 . . 1 . Swap 12 | . 10 . 1 1 . Drop 15 | . 10 2 3 . . Fire 85 | . 37 4 11 33 . Melee . | . . . . . . Ram . | . . . . . . Kick . | . . . . . . Crush 1 | . 1 . . . . Escape Stasis . | . . . . . . Rewire . | . . . . . . Trap . | . . . . . . Miscellaneous . | . . . . . . Route ------- -11/Scrapyard -10/Materials (discovered 5 exits: *Mat x3 / *Min x2) -10/Mines -9/Materials -9/Mines (discovered 3 exits: [*Mat x2] / [*Exi]) -9/Exiles History --------- Turn | Location | Event 1 | -11/Scrapyard | Discovered new exit (range 1) 3 | -11/Scrapyard | Entered Materials 302 | -10/Materials | Build established: Mutant 369 | -10/Materials | Central database locked down 377 | -10/Materials | Discovered new exit (range 5) 547 | -10/Materials | Discovered new exit (range 15) 756 | -10/Materials | Discovered new exit (range 12) 924 | -10/Materials | Discovered new exit (range 3) 1016 | -10/Materials | Build established: Hauler-Mutant 1167 | -10/Materials | Discovered new exit (range 16) 1234 | -10/Materials | Entered Mines 1346 | -10/Mines | Discovered new exit (range 6) 1477 | -10/Mines | Received a Rocket Launcher from a helpful Derelict 1856 | -10/Mines | Entered Materials 1856 | -9/Materials | Evolved 2 slots: Propulsion x1, Utility x1 2110 | -9/Materials | Discovered new exit (range 6) 2186 | -9/Materials | Entered Mines 2256 | -9/Mines | A weapon hastily lodged in a ceiling crevice suddenly fell to the ground 2473 | -9/Mines | Discovered new exit (range 9) 2541 | -9/Mines | Assembled infested the area 2546 | -9/Mines | Assisted by a Guerilla fighting off Assembled 2624 | -9/Mines | Lost 8 parts (1p3n4w) 2714 | -9/Mines | Met a Derelict testing a Signal Generator 2902 | -9/Mines | Discovered new exit (range 11) 2940 | -9/Mines | Joined a pair of Derelicts in attacking an 0b10 outpost 3034 | -9/Mines | Deemed a non-threat by the Exiles lab entrance 3035 | -9/Mines | Discovered new exit (range 5) 3046 | -9/Mines | Entered Exiles 3046 | -9/Exiles | Accompanied by 1 ally 3090 | -9/Exiles | Met 8R-AWN 3117 | -9/Exiles | Attacked by the Exiles 3118 | -9/Exiles | Self-destructed Last Messages --------------- 02991_ Acquired Maul. 03023_ Z:|4BHBQP0YVT2|KPZ% H5& Map ----- +----------------------------------------------------+ | ?????????????????????????????????????????????????? | | ?????????????????????????????????????????????????? | | ?????????????????????????????????????????????????? | | ?????????????????????????????????????????????????? | | ?????????????????????????????????????????????????? | | ?????????????????????????????????????????????????? | | ?????????????????????????????????????????????????? | | ?????????????????????????????????????????????????? | | ?????????????????????????????????????????????????? | | ?????????????????????????????????????????????????? | | ?????????????????????????????????????????????????? | | ?????????????????????????????????????????????????? | | ?????????????????????????????????????????????????? | | ?????????????????????????????????????????????????? | | ?????????????????????????????????????????????????? | | ?????????????????????????????????????????????????? | | ?????????????????????????????????????????????????# | | ?????????????????????????????????????????????????# | | ?????????????????????????????#####???????????????# | | ????????????????????????????##" #??????????????## | | ????????????????????????????#" g #?????????????## | | ???????????????????????????## ##????????????# | | ?????????????????????????### ###????????### | | ?????????????????????????# ########## | | ????????????????????????## #""""## | | ????????????????????????#@ g * | | ????????????????? ## * | | ????????????? ;### | | ????????????? ""###"""""#### | | ???????????? #"""##?#######??#### * | | ????????????? ######??????????????##### | | ????????????? #????????????????????????### | | ???????????? aaa #???????????????????????????# | | ????????????? a aa""????????????????????????????? | | ?????????????a "?????????????????????????????? | | ??????????????"""""??????????????????????????????? | | ?????????????????????????????????????????????????? | | ?????????????????????????????????????????????????? | | ?????????????????????????????????????????????????? | | ?????????????????????????????????????????????????? | | ?????????????????????????????????????????????????? | | ?????????????????????????????????????????????????? | | ?????????????????????????????????????????????????? | | ?????????????????????????????????????????????????? | | ?????????????????????????????????????????????????? | | ?????????????????????????????????????????????????? | | ?????????????????????????????????????????????????? | | ?????????????????????????????????????????????????? | | ?????????????????????????????????????????????????? | | ?????????????????????????????????????????????????? | +----------------------------------------------------+ Best States ------------- Heat Dissipation 28 Energy Generation 10 Energy Capacity 250 Matter Stores 300 Matter Capacity 300 Sight Range 16 Terrain Scan Density 10 Evasion (%) 40 Recoil Reduction 3 Item Schematics ----------------- None Robot Schematics ------------------ None Fabricated ------------ Nothing Alien Tech Used ----------------- None Achievements -------------- None Challenges ------------ None Game ------ Seed FluxGrenadeMagmablaster Manual? 0 Play Time 00:17:51 Cumulative 46.6 hours Start 2020.10.13 @ 03:13:02 End 2020.10.13 @ 03:30:33 Sessions 1 Manual Loads 0 Difficulty Rogue Special Mode None Game No. 44 Rogue 44 Adventurer 0 Explorer 0 Win Type - Total 0 Types 0/0/0/0/0/0/0/0/0 Lore% 35 Gallery% 42 Achievement% 36 Wizard Run 0 Options --------- ASCII 1 Keyboard 1 Movement Arrows Keybinds 0 Fullscreen 1 Font 24/Proggy Map View 76x50 Tactical HUD 1 Map Filters NONE Filters NONE Steam 1 RUN: ba0aa588-cea7-4b3d-99c6-707539e2b018